[Event "Titled Tuesday Blitz August 15 Early 2023"]
[White "Cheer_Down"]
[Black "Cardenas Carbajal, Nilson"]
[BlackFideId "8401128"]
[WhiteElo "2326"]
[BlackElo "2133"]
[Result "1-0"]
[Round "9"]
[TimeControl "180+1"]
[Date "2023.08.15"]
[WhiteClock "0:02:17"]
[BlackClock "0:00:00"]
[Board "170"]

1. e4 {[%clk 0:03:00]}  d5 {[%clk 0:00:20]} 2. exd5 {[%clk 0:02:59]}  c6 {[%clk 0:00:21]} 3. c4 {[%clk 0:02:57]}  cxd5 {[%clk 0:00:21]} 4. d4 {[%clk 0:02:58]}  Nf6 {[%clk 0:00:21]} 5. Nc3 {[%clk 0:02:58]}  e6 {[%clk 0:00:19]} 6. Nf3 {[%clk 0:02:57]}  Bb4 {[%clk 0:00:20]} 7. cxd5 {[%clk 0:02:57]}  Nxd5 {[%clk 0:00:19]} 8. Qc2 {[%clk 0:02:57]}  O-O {[%clk 0:00:18]} 9. Bd3 {[%clk 0:02:57]}  Nc6 {[%clk 0:00:18]} 10. Bxh7+ {[%clk 0:02:56]}  Kh8 {[%clk 0:00:17]} 11. O-O {[%clk 0:02:48]}  f5 {[%clk 0:00:14]} 12. Bg6 {[%clk 0:02:36]}  Qf6 {[%clk 0:00:13]} 13. Bh5 {[%clk 0:02:33]}  Bxc3 {[%clk 0:00:13]} 14. bxc3 {[%clk 0:02:29]}  g6 {[%clk 0:00:13]} 15. c4 {[%clk 0:02:20]}  Ndb4 {[%clk 0:00:09]} 16. Qb3 {[%clk 0:02:20]}  gxh5 {[%clk 0:00:09]} 17. d5 {[%clk 0:02:19]}  exd5 {[%clk 0:00:04]} 18. cxd5 {[%clk 0:02:19]}  Qxa1 {[%clk 0:00:04]} 19. Bb2+ {[%clk 0:02:17]}  Qxb2 {[%clk 0:00:03]} 20. Qxb2+ {[%clk 0:02:18]}  Kh7 {[%clk 0:00:02]} 21. dxc6 {[%clk 0:02:19]}  Nxc6 {[%clk 0:00:00]} 22. Rd1 {[%clk 0:02:17]} 1-0


[Site "https://www.chess.com"]

[Event "Titled Tuesday Blitz August 15 Early 2023"]
[White "Firouzja, Alireza"]
[Black "Bortnyk, Olexandr"]
[WhiteFideId "12573981"]
[BlackFideId "14120828"]
[WhiteElo "3107"]
[BlackElo "3104"]
[Result "1-0"]
[Round "10"]
[TimeControl "180+1"]
[Date "2023.08.15"]
[WhiteClock "0:00:05"]
[BlackClock "0:00:00"]
[Board "2"]

1. e4 {[%clk 0:03:00]}  Nf6 {[%clk 0:02:59]} 2. e5 {[%clk 0:03:01]}  Nd5 {[%clk 0:02:59]} 3. d4 {[%clk 0:03:01]}  d6 {[%clk 0:03:00]} 4. c4 {[%clk 0:03:01]}  Nb6 {[%clk 0:03:00]} 5. exd6 {[%clk 0:03:02]}  exd6 {[%clk 0:03:01]} 6. h3 {[%clk 0:03:00]}  Be7 {[%clk 0:02:54]} 7. Nf3 {[%clk 0:02:58]}  Bf5 {[%clk 0:02:53]} 8. Bd3 {[%clk 0:02:58]}  Bxd3 {[%clk 0:02:51]} 9. Qxd3 {[%clk 0:02:59]}  O-O {[%clk 0:02:51]} 10. O-O {[%clk 0:02:59]}  Nc6 {[%clk 0:02:47]} 11. Nc3 {[%clk 0:02:53]}  Re8 {[%clk 0:02:44]} 12. b3 {[%clk 0:02:45]}  Bf6 {[%clk 0:02:41]} 13. Bf4 {[%clk 0:02:45]}  a5 {[%clk 0:02:28]} 14. Ne4 {[%clk 0:02:40]}  Nb4 {[%clk 0:02:23]} 15. Qb1 {[%clk 0:02:33]}  d5 {[%clk 0:01:34]} 16. Nxf6+ {[%clk 0:02:25]}  Qxf6 {[%clk 0:01:35]} 17. Bxc7 {[%clk 0:02:21]}  dxc4 {[%clk 0:01:29]} 18. Bxb6 {[%clk 0:02:20]}  Qxb6 {[%clk 0:01:26]} 19. bxc4 {[%clk 0:02:19]}  Qa6 {[%clk 0:01:04]} 20. a3 {[%clk 0:02:15]}  Nc6 {[%clk 0:01:03]} 21. Qd3 {[%clk 0:02:07]}  Rac8 {[%clk 0:01:01]} 22. Rfe1 {[%clk 0:02:06]}  Ne7 {[%clk 0:00:51]} 23. d5 {[%clk 0:02:00]}  Ng6 {[%clk 0:00:48]} 24. d6 {[%clk 0:01:55]}  Rxe1+ {[%clk 0:00:38]} 25. Rxe1 {[%clk 0:01:54]}  Rd8 {[%clk 0:00:34]} 26. d7 {[%clk 0:01:42]}  Qc6 {[%clk 0:00:33]} 27. Qf5 {[%clk 0:00:39]}  f6 {[%clk 0:00:22]} 28. Qxa5 {[%clk 0:00:21]}  Qxd7 {[%clk 0:00:22]} 29. Rb1 {[%clk 0:00:19]}  Nf4 {[%clk 0:00:19]} 30. Rxb7 {[%clk 0:00:16]}  Ne2+ {[%clk 0:00:05]} 31. Kh2 {[%clk 0:00:11]}  Qd6+ {[%clk 0:00:06]} 32. g3 {[%clk 0:00:11]}  Rc8 {[%clk 0:00:03]} 33. Qa7 {[%clk 0:00:10]}  Qf8 {[%clk 0:00:02]} 34. Qe3 {[%clk 0:00:08]}  Re8 {[%clk 0:00:02]} 35. Qd3 {[%clk 0:00:07]}  Qc5 {[%clk 0:00:02]} 36. Kg2 {[%clk 0:00:07]}  Qc6 {[%clk 0:00:00]} 37. Rd7 {[%clk 0:00:05]} 1-0


[Site "https://www.chess.com"]

[Event "Titled Tuesday Blitz August 15 Early 2023"]
[White "Nihal Sarin"]
[Black "Andreikin, Dmitry"]
[WhiteFideId "25092340"]
[BlackFideId "4158814"]
[WhiteElo "3151"]
[BlackElo "3010"]
[Result "1-0"]
[Round "10"]
[TimeControl "180+1"]
[Date "2023.08.15"]
[WhiteClock "0:00:07"]
[BlackClock "0:00:00"]
[Board "3"]

1. e4 {[%clk 0:03:00]}  c5 {[%clk 0:02:59]} 2. Nf3 {[%clk 0:03:00]}  e6 {[%clk 0:03:00]} 3. g3 {[%clk 0:02:59]}  Nc6 {[%clk 0:02:58]} 4. Bg2 {[%clk 0:02:59]}  Nge7 {[%clk 0:02:58]} 5. O-O {[%clk 0:02:58]}  g6 {[%clk 0:02:58]} 6. c3 {[%clk 0:02:56]}  d5 {[%clk 0:02:56]} 7. exd5 {[%clk 0:02:53]}  exd5 {[%clk 0:02:53]} 8. d4 {[%clk 0:02:52]}  cxd4 {[%clk 0:02:53]} 9. Nxd4 {[%clk 0:02:47]}  Bg7 {[%clk 0:02:54]} 10. Be3 {[%clk 0:02:44]}  O-O {[%clk 0:02:53]} 11. Na3 {[%clk 0:02:44]}  h5 {[%clk 0:02:46]} 12. h4 {[%clk 0:02:29]}  Bg4 {[%clk 0:02:46]} 13. Qd2 {[%clk 0:02:30]}  Qd7 {[%clk 0:02:37]} 14. Rfe1 {[%clk 0:02:30]}  Rfe8 {[%clk 0:02:35]} 15. Nac2 {[%clk 0:02:26]}  Ne5 {[%clk 0:02:30]} 16. b3 {[%clk 0:02:26]}  Rac8 {[%clk 0:02:24]} 17. Bh6 {[%clk 0:02:25]}  Bh8 {[%clk 0:02:19]} 18. Bg5 {[%clk 0:02:24]}  N7c6 {[%clk 0:02:04]} 19. Re3 {[%clk 0:02:17]}  Nxd4 {[%clk 0:01:50]} 20. Nxd4 {[%clk 0:02:16]}  Nc6 {[%clk 0:01:51]} 21. Rxe8+ {[%clk 0:02:05]}  Rxe8 {[%clk 0:01:49]} 22. Be3 {[%clk 0:02:05]}  a6 {[%clk 0:01:36]} 23. Nc2 {[%clk 0:01:58]}  Qf5 {[%clk 0:01:19]} 24. Rc1 {[%clk 0:01:49]}  Bf3 {[%clk 0:01:08]} 25. Bxf3 {[%clk 0:01:48]}  Qxf3 {[%clk 0:01:09]} 26. Ne1 {[%clk 0:01:46]}  Qe4 {[%clk 0:01:03]} 27. Rd1 {[%clk 0:01:46]}  Bxc3 {[%clk 0:00:46]} 28. Qxc3 {[%clk 0:01:43]}  d4 {[%clk 0:00:47]} 29. Bxd4 {[%clk 0:01:39]}  Nxd4 {[%clk 0:00:47]} 30. Rxd4 {[%clk 0:01:40]}  Qxe1+ {[%clk 0:00:47]} 31. Qxe1 {[%clk 0:01:41]}  Rxe1+ {[%clk 0:00:47]} 32. Kg2 {[%clk 0:01:42]}  Kf8 {[%clk 0:00:39]} 33. a4 {[%clk 0:01:30]}  Re5 {[%clk 0:00:33]} 34. Kf3 {[%clk 0:01:21]}  Rc5 {[%clk 0:00:29]} 35. Ke4 {[%clk 0:01:02]}  Ke7 {[%clk 0:00:28]} 36. Kd3 {[%clk 0:01:02]}  Ke6 {[%clk 0:00:24]} 37. Rb4 {[%clk 0:00:54]}  b5 {[%clk 0:00:23]} 38. axb5 {[%clk 0:00:55]}  axb5 {[%clk 0:00:23]} 39. Re4+ {[%clk 0:00:52]}  Kd6 {[%clk 0:00:17]} 40. Rd4+ {[%clk 0:00:47]}  Ke6 {[%clk 0:00:17]} 41. Re4+ {[%clk 0:00:33]}  Kd6 {[%clk 0:00:17]} 42. Re8 {[%clk 0:00:30]}  Rf5 {[%clk 0:00:12]} 43. f4 {[%clk 0:00:25]}  Rd5+ {[%clk 0:00:12]} 44. Kc3 {[%clk 0:00:22]}  Rc5+ {[%clk 0:00:07]} 45. Kb4 {[%clk 0:00:21]}  Rc1 {[%clk 0:00:08]} 46. Re3 {[%clk 0:00:18]}  Rc5 {[%clk 0:00:05]} 47. Rd3+ {[%clk 0:00:15]}  Kc6 {[%clk 0:00:05]} 48. Rd8 {[%clk 0:00:13]}  Rf5 {[%clk 0:00:06]} 49. Rc8+ {[%clk 0:00:12]}  Kb6 {[%clk 0:00:05]} 50. Rc3 {[%clk 0:00:11]}  Rd5 {[%clk 0:00:05]} 51. Re3 {[%clk 0:00:11]}  Rd4+ {[%clk 0:00:05]} 52. Kc3 {[%clk 0:00:12]}  Rd7 {[%clk 0:00:04]} 53. f5 {[%clk 0:00:10]}  Kc5 {[%clk 0:00:01]} 54. fxg6 {[%clk 0:00:09]}  fxg6 {[%clk 0:00:02]} 55. b4+ {[%clk 0:00:05]}  Kc6 {[%clk 0:00:02]} 56. Re6+ {[%clk 0:00:05]}  Kd5 {[%clk 0:00:03]} 57. Rxg6 {[%clk 0:00:06]}  Re7 {[%clk 0:00:03]} 58. Kd3 {[%clk 0:00:05]}  Ra7 {[%clk 0:00:02]} 59. Rg5+ {[%clk 0:00:05]}  Kc6 {[%clk 0:00:02]} 60. Kd4 {[%clk 0:00:05]}  Rd7+ {[%clk 0:00:02]} 61. Ke4 {[%clk 0:00:05]}  Re7+ {[%clk 0:00:03]} 62. Kf4 {[%clk 0:00:06]}  Rd7 {[%clk 0:00:02]} 63. Rxh5 {[%clk 0:00:06]}  Rd4+ {[%clk 0:00:02]} 64. Kf3 {[%clk 0:00:04]}  Rxb4 {[%clk 0:00:03]} 65. Re5 {[%clk 0:00:04]}  Rb1 {[%clk 0:00:02]} 66. h5 {[%clk 0:00:04]}  b4 {[%clk 0:00:02]} 67. Kg2 {[%clk 0:00:03]}  b3 {[%clk 0:00:03]} 68. Re2 {[%clk 0:00:01]}  Rc1 {[%clk 0:00:03]} 69. h6 {[%clk 0:00:01]}  Rc2 {[%clk 0:00:02]} 70. Kf3 {[%clk 0:00:01]}  Rxe2 {[%clk 0:00:02]} 71. Kxe2 {[%clk 0:00:02]}  b2 {[%clk 0:00:03]} 72. h7 {[%clk 0:00:03]}  b1=Q {[%clk 0:00:03]} 73. h8=Q {[%clk 0:00:04]}  Qe4+ {[%clk 0:00:04]} 74. Kf2 {[%clk 0:00:04]}  Qf5+ {[%clk 0:00:04]} 75. Kg1 {[%clk 0:00:04]}  Qb1+ {[%clk 0:00:03]} 76. Kh2 {[%clk 0:00:05]}  Qc2+ {[%clk 0:00:03]} 77. Kh3 {[%clk 0:00:06]}  Qf5+ {[%clk 0:00:04]} 78. Kh4 {[%clk 0:00:06]}  Qe4+ {[%clk 0:00:04]} 79. Kg5 {[%clk 0:00:07]}  Qe5+ {[%clk 0:00:00]} 80. Qxe5 {[%clk 0:00:07]} 1-0


[Site "https://www.chess.com"]

[Event "Titled Tuesday Blitz August 15 Early 2023"]
[White "Makarian, Rudik"]
[Black "Martinez Alcantara, Jose Eduardo"]
[WhiteFideId "44105681"]
[BlackFideId "3805662"]
[WhiteElo "2985"]
[BlackElo "3016"]
[Result "0-1"]
[Round "10"]
[TimeControl "180+1"]
[Date "2023.08.15"]
[WhiteClock "0:00:01"]
[BlackClock "0:01:04"]
[Board "5"]

1. d4 {[%clk 0:03:00]}  Nf6 {[%clk 0:03:00]} 2. c4 {[%clk 0:03:00]}  e6 {[%clk 0:03:01]} 3. Nf3 {[%clk 0:02:59]}  Bb4+ {[%clk 0:03:01]} 4. Bd2 {[%clk 0:02:59]}  c5 {[%clk 0:03:01]} 5. Bxb4 {[%clk 0:02:56]}  cxb4 {[%clk 0:03:02]} 6. c5 {[%clk 0:02:57]}  d6 {[%clk 0:02:55]} 7. cxd6 {[%clk 0:02:58]}  O-O {[%clk 0:02:51]} 8. e3 {[%clk 0:02:55]}  Qxd6 {[%clk 0:02:50]} 9. Nbd2 {[%clk 0:02:56]}  Nc6 {[%clk 0:02:50]} 10. Bd3 {[%clk 0:02:56]}  b6 {[%clk 0:02:46]} 11. O-O {[%clk 0:02:56]}  Bb7 {[%clk 0:02:47]} 12. Qe2 {[%clk 0:02:54]}  h6 {[%clk 0:02:40]} 13. Ba6 {[%clk 0:02:50]}  Bxa6 {[%clk 0:02:31]} 14. Qxa6 {[%clk 0:02:51]}  Rfc8 {[%clk 0:02:30]} 15. Rac1 {[%clk 0:02:47]}  Qd7 {[%clk 0:02:26]} 16. Qe2 {[%clk 0:02:28]}  Rc7 {[%clk 0:02:20]} 17. Nc4 {[%clk 0:02:13]}  Rac8 {[%clk 0:02:20]} 18. Nce5 {[%clk 0:02:03]}  Nxe5 {[%clk 0:02:10]} 19. Nxe5 {[%clk 0:02:04]}  Qd5 {[%clk 0:02:10]} 20. Rxc7 {[%clk 0:02:02]}  Rxc7 {[%clk 0:02:11]} 21. b3 {[%clk 0:01:55]}  Ne4 {[%clk 0:02:11]} 22. f3 {[%clk 0:01:50]}  Nc3 {[%clk 0:02:10]} 23. Qd2 {[%clk 0:01:49]}  a5 {[%clk 0:02:03]} 24. Nd3 {[%clk 0:01:31]}  Qb5 {[%clk 0:01:56]} 25. Nf4 {[%clk 0:01:28]}  Rd7 {[%clk 0:01:44]} 26. Qc2 {[%clk 0:01:17]}  e5 {[%clk 0:01:44]} 27. dxe5 {[%clk 0:01:10]}  Qxe5 {[%clk 0:01:45]} 28. Re1 {[%clk 0:00:51]}  Qd6 {[%clk 0:01:45]} 29. Kf1 {[%clk 0:00:37]}  g6 {[%clk 0:01:39]} 30. Ne2 {[%clk 0:00:24]}  Nd5 {[%clk 0:01:39]} 31. Ng3 {[%clk 0:00:21]}  Nc3 {[%clk 0:01:35]} 32. Ne4 {[%clk 0:00:18]}  Qe5 {[%clk 0:01:30]} 33. Ng3 {[%clk 0:00:12]}  h5 {[%clk 0:01:28]} 34. Kf2 {[%clk 0:00:10]}  Rc7 {[%clk 0:01:24]} 35. Qd3 {[%clk 0:00:09]}  Nxa2 {[%clk 0:01:18]} 36. Ne4 {[%clk 0:00:09]}  Kg7 {[%clk 0:01:15]} 37. f4 {[%clk 0:00:09]}  Qb2+ {[%clk 0:01:03]} 38. Re2 {[%clk 0:00:01]}  Nc1 {[%clk 0:01:04]} 0-1


[Site "https://www.chess.com"]

[Event "Titled Tuesday Blitz August 15 Early 2023"]
[White "Matlakov, Maxim"]
[Black "So, Wesley"]
[WhiteFideId "4168003"]
[BlackFideId "5202213"]
[WhiteElo "2980"]
[BlackElo "3124"]
[Result "1-0"]
[Round "10"]
[TimeControl "180+1"]
[Date "2023.08.15"]
[WhiteClock "0:00:04"]
[BlackClock "0:00:03"]
[Board "6"]

1. d4 {[%clk 0:03:00]}  g6 {[%clk 0:03:00]} 2. e4 {[%clk 0:03:00]}  Bg7 {[%clk 0:03:01]} 3. Nf3 {[%clk 0:03:01]}  c6 {[%clk 0:02:57]} 4. Bd3 {[%clk 0:02:54]}  d5 {[%clk 0:02:56]} 5. e5 {[%clk 0:02:55]}  f6 {[%clk 0:02:49]} 6. h3 {[%clk 0:02:52]}  Nd7 {[%clk 0:02:43]} 7. Qe2 {[%clk 0:02:42]}  fxe5 {[%clk 0:02:37]} 8. Nxe5 {[%clk 0:02:36]}  Nxe5 {[%clk 0:02:36]} 9. dxe5 {[%clk 0:02:37]}  Nh6 {[%clk 0:02:33]} 10. g4 {[%clk 0:02:25]}  c5 {[%clk 0:02:25]} 11. Bb5+ {[%clk 0:02:13]}  Bd7 {[%clk 0:02:21]} 12. Nc3 {[%clk 0:02:13]}  e6 {[%clk 0:02:17]} 13. Bd2 {[%clk 0:02:03]}  Nf7 {[%clk 0:02:11]} 14. Bxd7+ {[%clk 0:01:55]}  Qxd7 {[%clk 0:02:12]} 15. f4 {[%clk 0:01:55]}  O-O-O {[%clk 0:01:59]} 16. O-O-O {[%clk 0:01:54]}  g5 {[%clk 0:01:56]} 17. Kb1 {[%clk 0:01:49]}  a6 {[%clk 0:01:47]} 18. h4 {[%clk 0:01:48]}  gxf4 {[%clk 0:01:43]} 19. Bxf4 {[%clk 0:01:49]}  Qc7 {[%clk 0:01:41]} 20. Rhe1 {[%clk 0:01:38]}  Rhf8 {[%clk 0:01:28]} 21. g5 {[%clk 0:01:38]}  Nh8 {[%clk 0:01:24]} 22. Qg4 {[%clk 0:01:37]}  Kb8 {[%clk 0:01:07]} 23. h5 {[%clk 0:01:34]}  Qf7 {[%clk 0:01:05]} 24. Rf1 {[%clk 0:01:16]}  Qf5 {[%clk 0:01:04]} 25. Qe2 {[%clk 0:01:15]}  Nf7 {[%clk 0:00:56]} 26. Na4 {[%clk 0:01:10]}  Bxe5 {[%clk 0:00:51]} 27. Be3 {[%clk 0:00:49]}  Qh3 {[%clk 0:00:42]} 28. Nxc5 {[%clk 0:00:49]}  d4 {[%clk 0:00:11]} 29. Bc1 {[%clk 0:00:48]}  Bd6 {[%clk 0:00:07]} 30. Rf3 {[%clk 0:00:27]}  Qxh5 {[%clk 0:00:06]} 31. Nxb7 {[%clk 0:00:22]}  Ne5 {[%clk 0:00:05]} 32. Nxd6 {[%clk 0:00:16]}  Qxf3 {[%clk 0:00:02]} 33. Qxe5 {[%clk 0:00:11]}  Qd5 {[%clk 0:00:03]} 34. Bf4 {[%clk 0:00:09]}  Rxf4 {[%clk 0:00:02]} 35. Qxf4 {[%clk 0:00:08]}  Qxd6 {[%clk 0:00:03]} 36. Qh4 {[%clk 0:00:07]}  Qe7 {[%clk 0:00:02]} 37. a3 {[%clk 0:00:07]}  e5 {[%clk 0:00:02]} 38. Rh1 {[%clk 0:00:06]}  Rd7 {[%clk 0:00:01]} 39. Qe4 {[%clk 0:00:05]}  Qxg5 {[%clk 0:00:01]} 40. Qc6 {[%clk 0:00:05]}  Qe7 {[%clk 0:00:02]} 41. Qxa6 {[%clk 0:00:05]}  e4 {[%clk 0:00:02]} 42. Rg1 {[%clk 0:00:05]}  e3 {[%clk 0:00:02]} 43. Qb6+ {[%clk 0:00:02]}  Kc8 {[%clk 0:00:02]} 44. Qc6+ {[%clk 0:00:03]}  Kb8 {[%clk 0:00:02]} 45. Qb6+ {[%clk 0:00:03]}  Kc8 {[%clk 0:00:02]} 46. Qc6+ {[%clk 0:00:03]}  Kb8 {[%clk 0:00:02]} 47. Qb5+ {[%clk 0:00:04]}  Kc7 {[%clk 0:00:02]} 48. Rg5 {[%clk 0:00:03]}  Rd6 {[%clk 0:00:02]} 49. Rc5+ {[%clk 0:00:03]}  Kd8 {[%clk 0:00:02]} 50. Qb8+ {[%clk 0:00:03]}  Kd7 {[%clk 0:00:03]} 51. Qc8# {[%clk 0:00:04]} 1-0


[Site "https://www.chess.com"]

[Event "Titled Tuesday Blitz August 15 Early 2023"]
[White "Shimanov, Aleksandr"]
[Black "Kamsky, Gata"]
[WhiteFideId "4198603"]
[BlackFideId "2000024"]
[WhiteElo "3027"]
[BlackElo "2934"]
[Result "1/2-1/2"]
[Round "10"]
[TimeControl "180+1"]
[Date "2023.08.15"]
[WhiteClock "0:00:19"]
[BlackClock "0:00:28"]
[Board "8"]

1. e4 {[%clk 0:03:00]}  c5 {[%clk 0:02:53]} 2. d4 {[%clk 0:03:00]}  cxd4 {[%clk 0:02:52]} 3. Qxd4 {[%clk 0:03:01]}  Nc6 {[%clk 0:02:48]} 4. Qd3 {[%clk 0:03:01]}  e6 {[%clk 0:02:37]} 5. Nc3 {[%clk 0:03:01]}  a6 {[%clk 0:02:37]} 6. Qg3 {[%clk 0:02:52]}  Nb4 {[%clk 0:02:20]} 7. Bd3 {[%clk 0:02:51]}  b5 {[%clk 0:02:19]} 8. Nf3 {[%clk 0:02:43]}  Bb7 {[%clk 0:02:18]} 9. O-O {[%clk 0:02:43]}  Nf6 {[%clk 0:01:59]} 10. Re1 {[%clk 0:02:27]}  d6 {[%clk 0:01:44]} 11. Be3 {[%clk 0:02:18]}  Nxd3 {[%clk 0:01:23]} 12. cxd3 {[%clk 0:02:18]}  Nh5 {[%clk 0:01:24]} 13. Qh3 {[%clk 0:02:13]}  Nf6 {[%clk 0:01:24]} 14. Nd4 {[%clk 0:01:45]}  Be7 {[%clk 0:01:23]} 15. f4 {[%clk 0:01:45]}  h5 {[%clk 0:01:19]} 16. Kh1 {[%clk 0:01:42]}  g6 {[%clk 0:01:16]} 17. a3 {[%clk 0:01:41]}  Qd7 {[%clk 0:01:16]} 18. Rac1 {[%clk 0:01:40]}  e5 {[%clk 0:01:14]} 19. Qxd7+ {[%clk 0:01:38]}  Nxd7 {[%clk 0:01:13]} 20. Nb3 {[%clk 0:01:37]}  Rc8 {[%clk 0:01:10]} 21. Rf1 {[%clk 0:01:22]}  exf4 {[%clk 0:01:06]} 22. Bxf4 {[%clk 0:01:21]}  O-O {[%clk 0:01:03]} 23. h3 {[%clk 0:01:15]}  f5 {[%clk 0:01:00]} 24. Na5 {[%clk 0:00:42]}  Ba8 {[%clk 0:00:58]} 25. Nd5 {[%clk 0:00:42]}  Bxd5 {[%clk 0:00:56]} 26. exd5 {[%clk 0:00:43]}  Nf6 {[%clk 0:00:53]} 27. Nc6 {[%clk 0:00:43]}  Nxd5 {[%clk 0:00:46]} 28. Nxe7+ {[%clk 0:00:43]}  Nxe7 {[%clk 0:00:46]} 29. Bxd6 {[%clk 0:00:44]}  Kf7 {[%clk 0:00:45]} 30. Rce1 {[%clk 0:00:29]}  Rfe8 {[%clk 0:00:44]} 31. g4 {[%clk 0:00:29]}  hxg4 {[%clk 0:00:39]} 32. hxg4 {[%clk 0:00:30]}  Rcd8 {[%clk 0:00:35]} 33. Bxe7 {[%clk 0:00:24]}  Rxe7 {[%clk 0:00:36]} 34. gxf5 {[%clk 0:00:25]}  Rxe1 {[%clk 0:00:31]} 35. fxg6+ {[%clk 0:00:24]}  Kxg6 {[%clk 0:00:32]} 36. Rxe1 {[%clk 0:00:25]}  Rxd3 {[%clk 0:00:32]} 37. Re6+ {[%clk 0:00:24]}  Kf5 {[%clk 0:00:33]} 38. Rxa6 {[%clk 0:00:24]}  Rb3 {[%clk 0:00:33]} 39. Kg2 {[%clk 0:00:22]}  Rxb2+ {[%clk 0:00:31]} 40. Kf3 {[%clk 0:00:23]}  b4 {[%clk 0:00:28]} 41. axb4 {[%clk 0:00:22]}  Rb3+ {[%clk 0:00:27]} 42. Ke2 {[%clk 0:00:19]}  Rxb4 {[%clk 0:00:28]} 1/2-1/2


[Site "https://www.chess.com"]

[Event "Titled Tuesday Blitz August 15 Early 2023"]
[White "Nakamura, Hikaru"]
[Black "Badmatsyrenov, Oleg"]
[WhiteFideId "2016192"]
[BlackFideId "24115762"]
[WhiteElo "3233"]
[BlackElo "2766"]
[Result "1-0"]
[Round "10"]
[TimeControl "180+1"]
[Date "2023.08.15"]
[WhiteClock "0:00:23"]
[BlackClock "0:00:02"]
[Board "14"]

1. b3 {[%clk 0:03:00]}  e5 {[%clk 0:02:48]} 2. Bb2 {[%clk 0:03:01]}  Nc6 {[%clk 0:02:48]} 3. e3 {[%clk 0:03:02]}  Nf6 {[%clk 0:02:47]} 4. Bb5 {[%clk 0:03:02]}  Bd6 {[%clk 0:02:47]} 5. Ne2 {[%clk 0:03:02]}  O-O {[%clk 0:02:47]} 6. Bxc6 {[%clk 0:03:02]}  dxc6 {[%clk 0:02:47]} 7. d3 {[%clk 0:03:03]}  Bg4 {[%clk 0:02:45]} 8. h3 {[%clk 0:03:03]}  Bxe2 {[%clk 0:02:45]} 9. Qxe2 {[%clk 0:03:03]}  Qe7 {[%clk 0:02:45]} 10. e4 {[%clk 0:03:02]}  Nd7 {[%clk 0:02:43]} 11. O-O {[%clk 0:02:58]}  Rae8 {[%clk 0:02:35]} 12. a3 {[%clk 0:02:56]}  a5 {[%clk 0:02:34]} 13. Nd2 {[%clk 0:02:56]}  Bc5 {[%clk 0:02:33]} 14. Nf3 {[%clk 0:02:53]}  f6 {[%clk 0:02:28]} 15. g3 {[%clk 0:02:53]}  Rf7 {[%clk 0:02:28]} 16. c3 {[%clk 0:02:51]}  Nf8 {[%clk 0:02:27]} 17. b4 {[%clk 0:02:51]}  Bb6 {[%clk 0:02:26]} 18. c4 {[%clk 0:02:48]}  axb4 {[%clk 0:02:22]} 19. axb4 {[%clk 0:02:49]}  Bd4 {[%clk 0:02:07]} 20. Bxd4 {[%clk 0:02:37]}  exd4 {[%clk 0:02:08]} 21. c5 {[%clk 0:02:38]}  f5 {[%clk 0:02:00]} 22. e5 {[%clk 0:02:24]}  Ne6 {[%clk 0:01:57]} 23. Ra7 {[%clk 0:02:23]}  Rb8 {[%clk 0:01:51]} 24. Qa2 {[%clk 0:02:22]}  Qd7 {[%clk 0:01:44]} 25. Qc4 {[%clk 0:02:20]}  Qd5 {[%clk 0:01:37]} 26. Qxd5 {[%clk 0:01:43]}  cxd5 {[%clk 0:01:38]} 27. Rb1 {[%clk 0:01:37]}  f4 {[%clk 0:01:29]} 28. g4 {[%clk 0:01:37]}  c6 {[%clk 0:01:23]} 29. Rba1 {[%clk 0:01:23]}  b6 {[%clk 0:01:11]} 30. Ra8 {[%clk 0:01:17]}  Rff8 {[%clk 0:01:10]} 31. R8a6 {[%clk 0:01:14]}  Rb7 {[%clk 0:00:34]} 32. cxb6 {[%clk 0:01:07]}  Rfb8 {[%clk 0:00:35]} 33. Rc1 {[%clk 0:01:07]}  Rxb6 {[%clk 0:00:29]} 34. Rxc6 {[%clk 0:01:08]}  Rxc6 {[%clk 0:00:29]} 35. Rxc6 {[%clk 0:01:08]}  Kf7 {[%clk 0:00:29]} 36. Rd6 {[%clk 0:01:08]}  Rxb4 {[%clk 0:00:18]} 37. Rd7+ {[%clk 0:01:08]}  Ke8 {[%clk 0:00:17]} 38. Rxd5 {[%clk 0:01:08]}  Ke7 {[%clk 0:00:17]} 39. h4 {[%clk 0:01:00]}  Rb3 {[%clk 0:00:09]} 40. Nxd4 {[%clk 0:00:58]}  Nxd4 {[%clk 0:00:05]} 41. Rxd4 {[%clk 0:00:59]}  Ke6 {[%clk 0:00:06]} 42. Rxf4 {[%clk 0:00:57]}  Rxd3 {[%clk 0:00:06]} 43. Re4 {[%clk 0:00:57]}  Rh3 {[%clk 0:00:05]} 44. h5 {[%clk 0:00:50]}  Rd3 {[%clk 0:00:05]} 45. Kg2 {[%clk 0:00:49]}  Rd5 {[%clk 0:00:05]} 46. f4 {[%clk 0:00:50]}  Rd3 {[%clk 0:00:05]} 47. f5+ {[%clk 0:00:50]}  Kd5 {[%clk 0:00:05]} 48. e6 {[%clk 0:00:30]}  Kxe4 {[%clk 0:00:03]} 49. e7 {[%clk 0:00:30]}  Kf4 {[%clk 0:00:02]} 50. e8=Q {[%clk 0:00:30]}  Rg3+ {[%clk 0:00:02]} 51. Kf2 {[%clk 0:00:23]}  Rxg4 {[%clk 0:00:03]} 52. h6 {[%clk 0:00:22]}  Kxf5 {[%clk 0:00:02]} 53. Qd7+ {[%clk 0:00:22]}  Kg6 {[%clk 0:00:02]} 54. Qxg4+ {[%clk 0:00:21]}  Kxh6 {[%clk 0:00:03]} 55. Qh4+ {[%clk 0:00:21]}  Kg6 {[%clk 0:00:03]} 56. Qe4+ {[%clk 0:00:21]}  Kh6 {[%clk 0:00:03]} 57. Kg3 {[%clk 0:00:22]}  g5 {[%clk 0:00:04]} 58. Kg4 {[%clk 0:00:22]}  Kg7 {[%clk 0:00:04]} 59. Kxg5 {[%clk 0:00:22]}  h6+ {[%clk 0:00:02]} 60. Kf5 {[%clk 0:00:23]} 1-0


[Site "https://www.chess.com"]